fUST/lending_fUST_20250316
["ID","MTS","AMOUNT","RATE_DAILY","PERIOD"]
[356195149,1742065835592,-781.91,8.219e-05,2]
[356195150,1742065835601,-500.0,8.219e-05,2]
[356195151,1742065835610,-509.4008606,8.219e-05,2]
[356195152,1742065835620,-781.91,8.219e-05,2]
[356195153,1742065835629,-500.0,8.219e-05,2]
[356195154,1742065835638,-781.91,8.219e-05,2]
[356195155,1742065835648,-500.0,8.219e-05,2]
[356195156,1742065835657,-781.91,8.219e-05,2]
[356195157,1742065835667,-500.0,8.219e-05,2]
[356195158,1742065835676,-781.91,8.219e-05,2]
[356195159,1742065835686,-500.0,8.219e-05,2]
[356195160,1742065835695,-781.91,8.219e-05,2]
[356195161,1742065835705,-500.0,8.219e-05,2]
[356195162,1742065835715,-892.6,8.219e-05,2]
[356195163,1742065835725,-510.04144881,8.219e-05,2]
[356195164,1742065835735,-500.0,8.219e-05,2]
[356195165,1742065835744,-500.0,8.219e-05,2]
[356195166,1742065835755,-1110.45,8.219e-05,2]
[356195167,1742065835765,-1110.45,8.219e-05,2]
[356195168,1742065835774,-1110.45,8.219e-05,2]
[356195169,1742065835784,-504.70494463,8.219e-05,2]
[356195170,1742065835793,-1110.45,8.219e-05,2]
[356195171,1742065835802,-500.0,8.219e-05,2]
[356195172,1742065835813,-1110.45,8.219e-05,2]
[356195173,1742065835822,-1110.45,8.219e-05,2]
[356195174,1742065835832,-1110.45,8.219e-05,2]
[356195175,1742065835842,-1110.45,8.219e-05,2]
[356195176,1742065835851,-3424.71,8.219e-05,2]
[356195177,1742065835861,-1110.45,8.219e-05,2]
[356195178,1742065835870,-500.0,8.219e-05,2]
[356195179,1742065835879,-511.64736824,8.219e-05,2]
[356195180,1742065835889,-499.22522327,8.219e-05,2]
[356195181,1742065835898,-500.0,8.219e-05,2]
[356195182,1742065835907,-500.0,8.219e-05,2]
[356195183,1742065835917,-500.0,8.219e-05,2]
[356195184,1742065835928,-500.0,8.219e-05,2]
[356195185,1742065835937,-500.0,8.219e-05,2]
[356195186,1742065835947,-500.0,8.219e-05,2]
[356195187,1742065835957,-500.0,8.219e-05,2]
[356195188,1742065835966,-1357.95,8.219e-05,2]
[356195189,1742065835978,-500.0,8.219e-05,2]
[356195190,1742065835988,-500.0,8.219e-05,2]
[356195191,1742065835997,-506.05779896,8.219e-05,2]
[356195192,1742065836007,-500.0,8.219e-05,2]
[356195193,1742065836017,-500.0,8.219e-05,2]
[356195194,1742065836026,-500.0,8.219e-05,2]
[356195195,1742065836036,-500.0,8.219e-05,2]
[356195196,1742065836045,-500.0,8.219e-05,2]
[356195197,1742065836056,-435.29,8.219e-05,2]
[356195198,1742065836065,-500.0,8.219e-05,2]
[356195199,1742065836075,-500.0,8.219e-05,2]
[356195200,1742065836085,-500.0,8.219e-05,2]
[356195201,1742065836095,-503.68509366,8.219e-05,2]
[356195202,1742065836105,-373.80255331,8.219e-05,2]
[356195203,1742065836115,-500.0,8.219e-05,2]
[356195204,1742065836124,-580.2,8.219e-05,2]
[356195205,1742065836134,-404.38132417,8.219e-05,2]
[356195206,1742065836143,-500.0,8.219e-05,2]
[356195207,1742065836153,-500.0,8.219e-05,2]
[356195208,1742065836162,-500.0,8.219e-05,2]
[356195209,1742065836172,-520.0521543,8.219e-05,2]
[356195210,1742065836181,-500.0,8.219e-05,2]
[356195211,1742065836191,-500.0,8.219e-05,2]
[356195212,1742065836200,-500.0,8.219e-05,2]
[356195213,1742065836210,-500.0,8.219e-05,2]
[356195214,1742065836220,-500.0,8.219e-05,2]
[356195215,1742065836230,-500.0,8.219e-05,2]
[356195216,1742065836240,-511.98527154,8.219e-05,2]
[356195217,1742065836250,-500.0,8.219e-05,2]
[356195218,1742065836259,-500.0,8.219e-05,2]
[356195219,1742065836269,-514.11048571,8.219e-05,2]
[356195220,1742065836279,-500.0,8.219e-05,2]
[356195221,1742065836288,-534.87201278,8.219e-05,2]
[356195222,1742065836298,-500.0,8.219e-05,2]
[356195223,1742065836307,-515.3860447,8.219e-05,2]
[356195224,1742065836317,-500.0,8.219e-05,2]
[356195225,1742065836326,-500.0,8.219e-05,2]
[356195226,1742065836336,-500.0,8.219e-05,2]
[356195227,1742065836345,-500.0,8.219e-05,2]
[356195228,1742065836355,-500.0,8.219e-05,2]
[356195229,1742065836369,-629.88387154,8.219e-05,2]
[356195230,1742065836378,-500.0,8.219e-05,2]
[356195231,1742065836388,-634.53461869,8.219e-05,2]
[356195232,1742065836398,-593.24,8.219e-05,2]
[356195233,1742065836408,-511.97254701,8.219e-05,2]
[356195234,1742065836417,-500.0,8.219e-05,2]
[356195235,1742065836427,-6986.15,8.219e-05,2]
[356195236,1742065836438,-500.0,8.219e-05,2]
[356195237,1742065836448,-500.0,8.219e-05,2]
[356195238,1742065836458,-500.0,8.219e-05,2]
[356195239,1742065836466,-500.0,8.219e-05,2]
[356195240,1742065836474,-987.77845102,8.219e-05,2]
[356195241,1742065836482,-500.0,8.219e-05,2]
[356195242,1742065836490,-1333.25,8.219e-05,2]
[356195243,1742065836499,-500.0,8.219e-05,2]
[356195244,1742065836507,-505.1969065,8.219e-05,2]
[356195245,1742065836515,-500.0,8.219e-05,2]
[356195246,1742065836525,-500.0,8.219e-05,2]
[356195247,1742065836534,-500.0,8.219e-05,2]
[356195248,1742065836544,-513.02885553,8.219e-05,2]
[356195249,1742065836553,-515.96359895,8.219e-05,2]
[356195250,1742065836563,-500.0,8.219e-05,2]
[356195251,1742065836573,-500.0,8.219e-05,2]
[356195252,1742065836582,-523.18346323,8.219e-05,2]
[356195253,1742065836592,-500.78168535,8.219e-05,2]
[356195254,1742065836601,-500.0,8.219e-05,2]
[356195255,1742065836610,-500.0,8.219e-05,2]
[356195256,1742065836619,-601.74,8.219e-05,2]
[356195257,1742065836629,-952.49,8.219e-05,2]
[356195258,1742065836638,-601.74,8.219e-05,2]
[356195259,1742065836648,-601.74,8.219e-05,2]
[356195260,1742065836657,-548.54,8.219e-05,2]
[356195261,1742065836667,-601.74,8.219e-05,2]
[356195262,1742065836676,-601.74,8.219e-05,2]
[356195263,1742065836686,-509.23685545,8.219e-05,2]
[356195264,1742065836695,-601.74,8.219e-05,2]
[356195265,1742065836704,-601.74,8.219e-05,2]
[356195266,1742065836714,-601.74,8.219e-05,2]
[356195267,1742065836724,-601.74,8.219e-05,2]
[356195268,1742065836734,-500.0,8.219e-05,2]
[356195269,1742065836743,-500.0,8.219e-05,2]
[356195270,1742065836753,-512.29866053,8.219e-05,2]
[356195271,1742065836762,-500.0,8.219e-05,2]
[356195272,1742065836772,-1359.45,8.219e-05,2]
[356195273,1742065836782,-500.0,8.219e-05,2]
[356195274,1742065836791,-500.0,8.219e-05,2]
[356195275,1742065836800,-500.0,8.219e-05,2]
[356195276,1742065836810,-500.0,8.219e-05,2]
[356195277,1742065836820,-517.04569471,8.219e-05,2]
[356195278,1742065836829,-500.0,8.219e-05,2]
[356195279,1742065836838,-850.27,8.219e-05,2]
[356195280,1742065836847,-500.0,8.219e-05,2]
[356195281,1742065836857,-511.92909255,8.219e-05,2]
[356195282,1742065836866,-11364.73,8.219e-05,2]
[356195283,1742065836875,-518.52904411,8.219e-05,2]
[356195284,1742065836884,-500.0,8.219e-05,2]
[356195285,1742065836894,-518.13575351,8.219e-05,2]
[356195286,1742065836904,-522.74376338,8.219e-05,2]
[356195287,1742065836913,-500.0,8.219e-05,2]
[356195288,1742065836923,-519.81290491,8.219e-05,2]
[356195289,1742065836932,-500.0,8.219e-05,2]
[356195290,1742065836942,-500.0,8.219e-05,2]
[356195291,1742065836951,-597.93489469,8.219e-05,2]
[356195292,1742065836961,-500.0,8.219e-05,2]
[356195293,1742065836970,-502.15712057,8.219e-05,2]
[356195294,1742065836980,-500.0,8.219e-05,2]
[356195295,1742065836990,-500.0,8.219e-05,2]
[356195296,1742065837000,-500.0,8.219e-05,2]
[356195297,1742065837010,-500.0,8.219e-05,2]
[356195298,1742065837019,-511.83149971,8.219e-05,2]
[356195299,1742065837029,-500.0,8.219e-05,2]
[356195300,1742065837038,-500.0,8.219e-05,2]
[356195301,1742065837048,-3991.13,8.219e-05,2]
[356195302,1742065837058,-1747.8,8.219e-05,2]
[356195303,1742065837067,-501.47970553,8.219e-05,2]
[356195304,1742065837077,-500.0,8.219e-05,2]
[356195305,1742065837087,-502.26389425,8.219e-05,2]
[356195306,1742065837097,-509.27312869,8.219e-05,2]
[356195307,1742065837107,-500.0,8.219e-05,2]
[356195308,1742065837116,-508.84477397,8.219e-05,2]
[356195309,1742065837126,-518.67692795,8.219e-05,2]
[356195310,1742065837136,-500.0,8.219e-05,2]
[356195311,1742065837147,-500.0,8.219e-05,2]
[356195312,1742065837156,-500.0,8.219e-05,2]
[356195313,1742065837166,-582.99,8.219e-05,2]
[356195314,1742065837177,-500.0,8.219e-05,2]
[356195315,1742065837187,-500.0,8.219e-05,2]
[356195316,1742065837196,-6722.07,8.219e-05,2]
[356195317,1742065837206,-3343.54,8.219e-05,2]
[356195318,1742065837215,-504.56831434,8.219e-05,2]
[356195319,1742065837224,-500.0,8.219e-05,2]
[356195320,1742065837234,-517.46769254,8.219e-05,2]
[356195321,1742065837244,-500.0,8.219e-05,2]
[356195322,1742065837253,-500.0,8.219e-05,2]
[356195323,1742065837263,-511.27010861,8.219e-05,2]
[356195324,1742065837272,-500.0,8.219e-05,2]
[356195325,1742065837282,-2418.82,8.219e-05,2]
[356195326,1742065837291,-500.0,8.219e-05,2]
[356195327,1742065837301,-500.0,8.219e-05,2]
[356195328,1742065837310,-509.01808236,8.219e-05,2]
[356195329,1742065837320,-500.0,8.219e-05,2]
[356195330,1742065837331,-511.50735809,8.219e-05,2]
[356195331,1742065837340,-500.0,8.219e-05,2]
[356195332,1742065837350,-500.0,8.219e-05,2]
[356195333,1742065837364,-500.0,8.219e-05,2]
[356195334,1742065837373,-514.74590152,8.219e-05,2]
[356195335,1742065837383,-500.0,8.219e-05,2]
[356195336,1742065837393,-500.0,8.219e-05,2]
[356195337,1742065837403,-500.0,8.219e-05,2]
[356195338,1742065837413,-500.0,8.219e-05,2]
[356195339,1742065837422,-1265.43,8.219e-05,2]
[356195340,1742065837432,-502.7316187,8.219e-05,2]
[356195341,1742065837441,-500.0,8.219e-05,2]
[356195342,1742065837452,-500.0,8.219e-05,2]
[356195343,1742065837462,-500.0,8.219e-05,2]
[356195344,1742065837471,-500.0,8.219e-05,2]
[356195345,1742065837481,-8027.27,8.219e-05,2]
[356195346,1742065837490,-1050.86,8.219e-05,2]
[356195347,1742065837500,-503.38274774,8.219e-05,2]
[356195348,1742065837511,-500.0,8.219e-05,2]
[356195349,1742065837522,-500.0,8.219e-05,2]
[356195350,1742065837531,-500.0,8.219e-05,2]
[356195351,1742065837541,-500.0,8.219e-05,2]
[356195352,1742065837551,-501.90462168,8.219e-05,2]
[356195353,1742065837560,-1187.31,8.219e-05,2]
[356195354,1742065837570,-516.80519516,8.219e-05,2]
[356195355,1742065837579,-1196.89,8.219e-05,2]
[356195356,1742065837588,-2868.23,8.219e-05,2]
[356195357,1742065837598,-494.17842906,8.219e-05,2]
[356195358,1742065837608,-500.0,8.219e-05,2]
[356195359,1742065837618,-408.0882261,8.219e-05,2]
[356195360,1742065837628,-515.50084945,8.219e-05,2]
[356195361,1742065837638,-500.0,8.219e-05,2]
[356195362,1742065837649,-513.57408181,8.219e-05,2]
[356195363,1742065837658,-502.31604476,8.219e-05,2]
[356195364,1742065837669,-511.49851555,8.219e-05,2]
[356195365,1742065837678,-500.0,8.219e-05,2]
[356195366,1742065837688,-509.69829692,8.219e-05,2]
[356195367,1742065837697,-597.5,8.219e-05,2]
[356195368,1742065837707,-500.0,8.219e-05,2]
[356195369,1742065837717,-631.07,8.219e-05,2]
[356195370,1742065837726,-500.0,8.219e-05,2]
[356195371,1742065837736,-503.61339689,8.219e-05,2]
[356195372,1742065837746,-510.34603388,8.219e-05,2]
[356195373,1742065837756,-500.0,8.219e-05,2]
[356195374,1742065837767,-514.89446418,8.219e-05,2]
[356195375,1742065837778,-594.83,8.219e-05,2]
[356195376,1742065837787,-500.0,8.219e-05,2]
[356195377,1742065837798,-517.7666807,8.219e-05,2]
[356195378,1742065837807,-503.10853019,8.219e-05,2]
[356195379,1742065837817,-503.94171117,8.219e-05,2]
[356195380,1742065837826,-622.52768953,8.219e-05,2]
[356195381,1742065837837,-503.493253,8.219e-05,2]
[356195382,1742065837847,-2660.13,8.219e-05,2]
[356195383,1742065837857,-500.0,8.219e-05,2]
[356195384,1742065837867,-500.0,8.219e-05,2]
[356195386,1742065837879,-500.0,8.219e-05,2]
[356195387,1742065837890,-1966.07,8.219e-05,2]
[356195390,1742065837900,-500.0,8.219e-05,2]
[356195391,1742065837909,-513.49491947,8.219e-05,2]
[356195393,1742065837919,-505.20052089,8.219e-05,2]
[356195396,1742065837928,-500.0,8.219e-05,2]
[356195398,1742065837938,-522.12460832,8.219e-05,2]
[356195400,1742065837948,-500.0,8.219e-05,2]
[356195401,1742065837958,-522.43039914,8.219e-05,2]
[356195404,1742065837967,-500.0,8.219e-05,2]
[356195405,1742065837977,-500.0,8.219e-05,2]
[356195406,1742065837987,-4249.53,8.219e-05,2]
[356195407,1742065837998,-500.0,8.219e-05,2]
[356195408,1742065838008,-500.0,8.219e-05,2]
[356195410,1742065838017,-500.0,8.219e-05,2]
[356195413,1742065838027,-698.65,8.219e-05,2]
[356195416,1742065838036,-687.06,8.219e-05,2]
[356195418,1742065838047,-500.0,8.219e-05,2]
[356195420,1742065838056,-500.0,8.219e-05,2]
[356195422,1742065838066,-500.0,8.219e-05,2]
[356195424,1742065838076,-9038.5,8.219e-05,2]
[356195426,1742065838086,-16063.6,8.219e-05,2]
[356195428,1742065838096,-504.02745774,8.219e-05,2]
[356195430,1742065838105,-515.9894311,8.219e-05,2]
[356195432,1742065838114,-500.0,8.219e-05,2]
[356195434,1742065838124,-500.0,8.219e-05,2]
[356195435,1742065838134,-500.0,8.219e-05,2]
[356195436,1742065838144,-506.33028118,8.219e-05,2]
[356195438,1742065838153,-1005.05,8.219e-05,2]
[356195440,1742065838162,-500.0,8.219e-05,2]
[356195442,1742065838171,-551.54,8.219e-05,2]
[356195444,1742065838181,-500.0,8.219e-05,2]
[356195446,1742065838191,-510.01907414,8.219e-05,2]
[356195448,1742065838201,-500.0,8.219e-05,2]
[356195450,1742065838210,-500.0,8.219e-05,2]
[356195452,1742065838219,-507.00070841,8.219e-05,2]
[356195454,1742065838229,-507.66058035,8.219e-05,2]
[356195456,1742065838239,-500.0,8.219e-05,2]
[356195458,1742065838248,-500.0,8.219e-05,2]
[356195459,1742065838258,-510.40449489,8.219e-05,2]
[356195462,1742065838414,-500.0,8.219e-05,2]
[356195463,1742065838425,-3200.5,8.219e-05,2]
[356195464,1742065838436,-505.18021793,8.219e-05,2]
[356195465,1742065838445,-500.0,8.219e-05,2]
[356195466,1742065838456,-500.0,8.219e-05,2]
[356195467,1742065838466,-500.0,8.219e-05,2]
[356195468,1742065838475,-515.37567881,8.219e-05,2]
[356195469,1742065838484,-500.0,8.219e-05,2]
[356195470,1742065838495,-500.0,8.219e-05,2]
[356195471,1742065838506,-500.0,8.219e-05,2]
[356195472,1742065838516,-500.0,8.219e-05,2]
[356195473,1742065838526,-500.0,8.219e-05,2]
[356195474,1742065838535,-500.0,8.219e-05,2]
[356195475,1742065838545,-500.0,8.219e-05,2]
[356195476,1742065838555,-500.0,8.219e-05,2]
[356195477,1742065838567,-504.18933226,8.219e-05,2]
[356195478,1742065838577,-655.41,8.219e-05,2]
[356195479,1742065838587,-578.89,8.219e-05,2]
[356195480,1742065838596,-520.16335138,8.219e-05,2]
[356195481,1742065838606,-500.0,8.219e-05,2]
[356195482,1742065838616,-10030.42,8.219e-05,2]
[356195483,1742065838626,-511.48768851,8.219e-05,2]
[356195484,1742065838636,-526.75140304,8.219e-05,2]
[356195485,1742065838647,-500.0,8.219e-05,2]
[356195486,1742065838657,-504.05716498,8.219e-05,2]
[356195487,1742065838668,-500.0,8.219e-05,2]
[356195488,1742065838677,-504.30286377,8.219e-05,2]
[356195489,1742065838688,-500.0,8.219e-05,2]
[356195490,1742065838698,-500.0,8.219e-05,2]
[356195491,1742065838709,-500.0,8.219e-05,2]
[356195492,1742065838720,-512.16472591,8.219e-05,2]
[356195493,1742065838733,-517.84279871,8.219e-05,2]
[356195494,1742065838744,-3466.2121526,8.219e-05,2]
[356195495,1742065838753,-261.072536,8.219e-05,2]
[356195496,1742065838763,-261.072536,8.219e-05,2]
[356195497,1742065838772,-261.072536,8.219e-05,2]
[356195498,1742065838782,-261.072536,8.219e-05,2]
[356195499,1742065838792,-261.072536,8.219e-05,2]
[356195500,1742065838801,-261.072536,8.219e-05,2]
[356195501,1742065838811,-261.072536,8.219e-05,2]
[356195502,1742065838821,-261.072536,8.219e-05,2]
[356195503,1742065838830,-261.072536,8.219e-05,2]
[356195504,1742065838840,-261.072536,8.219e-05,2]
[356195505,1742065838849,-261.072536,8.219e-05,2]
[356195506,1742065838859,-261.072536,8.219e-05,2]
[356195507,1742065838869,-261.072536,8.219e-05,2]
[356195508,1742065838878,-261.072536,8.219e-05,2]
[356195509,1742065838888,-261.072536,8.219e-05,2]
[356195510,1742065838897,-261.072536,8.219e-05,2]
[356195511,1742065838907,-261.072536,8.219e-05,2]
[356195512,1742065838917,-261.072536,8.219e-05,2]
[356195513,1742065838927,-261.072536,8.219e-05,2]
[356195514,1742065838936,-261.072541,8.219e-05,2]
[356195515,1742065838947,-2500.0,8.22e-05,2]
[356195516,1742065838957,-160.0,8.305e-05,2]
[356195517,1742065838966,-2269.0,8.319e-05,2]
[356195518,1742065838976,-1916.0,8.319e-05,2]
[356195519,1742065838985,-540.0,8.319e-05,2]
[356195520,1742065838994,-399.0,8.319e-05,2]
[356195521,1742065839004,-500.0,8.473e-05,2]
[356195522,1742065839014,-500.0,8.473e-05,2]
[356195523,1742065839024,-500.0,8.473e-05,2]
[356195524,1742065839034,-500.0,8.473e-05,2]
[356195525,1742065839043,-500.0,8.473e-05,2]
[356195526,1742065839053,-422.95795947,8.473e-05,2]
[356195527,1742065839062,-502.8339842,8.473e-05,2]
[356195528,1742065839072,-500.0,8.473e-05,2]
[356195529,1742065839083,-500.0,8.473e-05,2]
[356195530,1742065839093,-500.0,8.473e-05,2]
[356195531,1742065839103,-500.0,8.473e-05,2]
[356195532,1742065839112,-500.0,8.473e-05,2]
[356195533,1742065839122,-500.0,8.473e-05,2]
[356195534,1742065839132,-465.09219053,8.473e-05,2]
[356195535,1742065839142,-500.0,8.473e-05,2]
[356195536,1742065839151,-500.0,8.473e-05,2]
[356195537,1742065839161,-500.0,8.473e-05,2]
[356195538,1742065839170,-500.0,8.473e-05,2]
[356195539,1742065839180,-500.0,8.473e-05,2]
[356195540,1742065839189,-500.0,8.473e-05,2]
[356195541,1742065839199,-220.5913559,8.473e-05,2]
[356195542,1742065839208,-500.0,8.473e-05,2]
[356195543,1742065839218,-500.0,8.473e-05,2]
[356195544,1742065839228,-521.304846,8.473e-05,2]
[356195545,1742065839237,-500.0,8.473e-05,2]
[356195546,1742065839247,-624.79332172,8.473e-05,2]
[356195547,1742065839256,-500.0,8.473e-05,2]
[356195548,1742065839265,-160.78222222,8.473e-05,2]
[356195549,1742065839275,-500.0,8.473e-05,2]
[356195550,1742065839284,-500.0,8.473e-05,2]
[356195551,1742065839294,-500.0,8.473e-05,2]
[356195552,1742065839304,-500.0,8.473e-05,2]
[356195553,1742065839315,-500.0,8.473e-05,2]
[356195554,1742065839324,-500.0,8.473e-05,2]
[356195555,1742065839334,-500.0,8.473e-05,2]
[356195556,1742065839344,-419.36172911,8.473e-05,2]
[356195557,1742065839354,-349.0397524,8.473e-05,2]
[356195558,1742065839367,-500.0,8.473e-05,2]
[356195559,1742065839378,-500.0,8.473e-05,2]
[356195560,1742065839388,-650.0,8.473e-05,2]
[356195561,1742065839399,-500.0,8.473e-05,2]
[356195562,1742065839411,-452.63766718,8.473e-05,2]
[356195563,1742065839422,-500.0,8.473e-05,2]
[356195564,1742065839431,-241.41873291,8.473e-05,2]
[356195565,1742065839442,-393.12887341,8.473e-05,2]
[356195566,1742065839452,-267.0465542,8.473e-05,2]
[356195567,1742065839461,-500.0,8.473e-05,2]
[356195568,1742065839470,-1688.23,8.492e-05,2]
[356195569,1742065839480,-1688.23,8.492e-05,2]
[356195570,1742065839490,-1688.23,8.492e-05,2]
[356195571,1742065839499,-1688.23,8.492e-05,2]
[356195572,1742065839509,-1688.23,8.492e-05,2]
[356195573,1742065839518,-1688.23,8.492e-05,2]
[356195574,1742065839528,-1688.23,8.492e-05,2]
[356195575,1742065839538,-1688.23,8.492e-05,2]
[356195576,1742065839547,-1688.23,8.492e-05,2]
[356195577,1742065839557,-781.91,8.492e-05,2]
[356195578,1742065839567,-781.91,8.492e-05,2]
[356195579,1742065839577,-781.91,8.492e-05,2]
[356195580,1742065839586,-781.91,8.492e-05,2]
[356195581,1742065839596,-781.91,8.492e-05,2]
[356195582,1742065839606,-781.91,8.492e-05,2]
[356195583,1742065839616,-781.91,8.492e-05,2]
[356195584,1742065839627,-781.91,8.492e-05,2]
[356195585,1742065839638,-781.91,8.492e-05,2]
[356195586,1742065839648,-1110.45,8.492e-05,2]
[356195587,1742065839664,-1110.45,8.492e-05,2]
[356195588,1742065839673,-1110.45,8.492e-05,2]
[356195589,1742065839683,-1110.45,8.492e-05,2]
[356195590,1742065839693,-1110.45,8.492e-05,2]
[356195591,1742065839702,-1110.45,8.492e-05,2]
[356195592,1742065839712,-1110.45,8.492e-05,2]
[356195593,1742065839721,-1110.45,8.492e-05,2]
[356195594,1742065839731,-1110.45,8.492e-05,2]
[356195595,1742065839741,-601.74,8.492e-05,2]
[356195596,1742065839751,-601.74,8.492e-05,2]
[356195597,1742065839761,-601.74,8.492e-05,2]
[356195598,1742065839774,-601.74,8.492e-05,2]
[356195599,1742065839784,-601.74,8.492e-05,2]
[356195600,1742065839793,-601.74,8.492e-05,2]
[356195601,1742065839803,-601.74,8.492e-05,2]
[356195602,1742065839812,-601.74,8.492e-05,2]
[356195603,1742065839821,-601.74,8.492e-05,2]
[356195604,1742065839831,-500.0,8.493e-05,2]
[356195605,1742065839840,-500.0,8.493e-05,2]
[356195606,1742065839850,-500.0,8.493e-05,2]
[356195607,1742065839860,-500.0,8.493e-05,2]
[356195608,1742065839869,-500.0,8.493e-05,2]
[356195609,1742065839879,-500.0,8.493e-05,2]
[356195611,1742065839888,-500.0,8.493e-05,2]
[356195613,1742065839899,-500.0,8.493e-05,2]
[356195614,1742065839909,-529.43,8.493e-05,2]
[356195615,1742065839919,-500.0,8.493e-05,2]
[356195616,1742065839928,-367.45786473,8.493e-05,2]
[356195617,1742065839939,-500.0,8.493e-05,2]
[356195618,1742065839949,-500.0,8.493e-05,2]
[356195619,1742065839958,-500.0,8.493e-05,2]
[356195620,1742065839968,-500.0,8.493e-05,2]
[356195621,1742065839978,-500.0,8.493e-05,2]
[356195622,1742065839988,-500.0,8.493e-05,2]
[356195623,1742065839998,-500.0,8.493e-05,2]
[356195624,1742065840008,-500.0,8.493e-05,2]
[356195625,1742065840018,-666.73,8.493e-05,2]
[356195626,1742065840027,-500.0,8.493e-05,2]
[356195627,1742065840038,-500.0,8.493e-05,2]
[356195628,1742065840048,-500.0,8.493e-05,2]
[356195629,1742065840057,-751.68,8.493e-05,2]
[356195630,1742065840067,-557.11,8.493e-05,2]
[356195631,1742065840076,-500.0,8.493e-05,2]
[356195632,1742065840086,-787.63,8.493e-05,2]
[356195633,1742065840095,-500.0,8.493e-05,2]
[356195634,1742065840105,-1116.97,8.493e-05,2]
[356195635,1742065840115,-548.89,8.493e-05,2]
[356195636,1742065840124,-500.0,8.493e-05,2]
[356195637,1742065840133,-500.0,8.493e-05,2]
[356195638,1742065840143,-500.0,8.493e-05,2]
[356195639,1742065840152,-500.0,8.493e-05,2]
[356195640,1742065840162,-717.68,8.493e-05,2]
[356195641,1742065840171,-500.0,8.493e-05,2]
[356195642,1742065840181,-500.0,8.493e-05,2]
[356195643,1742065840191,-500.0,8.493e-05,2]
[356195644,1742065840201,-824.65,8.493e-05,2]
[356195645,1742065840211,-500.0,8.493e-05,2]
[356195646,1742065840220,-500.0,8.493e-05,2]
[356195647,1742065840231,-500.0,8.493e-05,2]
[356195648,1742065840240,-500.0,8.493e-05,2]
[356195649,1742065840249,-309.41160149,8.493e-05,2]
[356195650,1742065840259,-706.05,8.493e-05,2]
[356195652,1742065840269,-853.08,8.493e-05,2]
[356195654,1742065840278,-498.25800788,8.493e-05,2]
[356195655,1742065840288,-711.89,8.493e-05,2]
[356195656,1742065840298,-500.0,8.493e-05,2]
[356195657,1742065840307,-500.0,8.493e-05,2]
[356195658,1742065840317,-500.0,8.493e-05,2]
[356195659,1742065840327,-500.0,8.493e-05,2]
[356195660,1742065840336,-500.0,8.493e-05,2]
[356195661,1742065840346,-500.0,8.493e-05,2]
[356195662,1742065840357,-500.0,8.493e-05,2]
[356195663,1742065840369,-500.0,8.493e-05,2]
[356195664,1742065840379,-557.03,8.493e-05,2]
[356195665,1742065840388,-500.0,8.493e-05,2]
[356195666,1742065840398,-515.79,8.493e-05,2]
[356195668,1742065840408,-500.0,8.493e-05,2]
[356195670,1742065840418,-525.9,8.493e-05,2]
[356195671,1742065840427,-5244.95,8.493e-05,2]
[356195673,1742065840436,-1144.16,8.493e-05,2]
[356195675,1742065840447,-986.31,8.493e-05,2]
[356195676,1742065840456,-1296.84,8.493e-05,2]
[356195677,1742065840465,-4370.86,8.493e-05,2]
[356195678,1742065840475,-500.0,8.493e-05,2]
[356195679,1742065840485,-500.0,8.493e-05,2]
[356195681,1742065840494,-500.0,8.493e-05,2]
[356195682,1742065840503,-892.6,8.493e-05,2]
[356195683,1742065840513,-500.0,8.493e-05,2]
[356195684,1742065840522,-500.0,8.493e-05,2]
[356195685,1742065840532,-156.99385972,8.493e-05,2]
[356195686,1742065840541,-3424.71,8.493e-05,2]
[356195687,1742065840551,-500.0,8.493e-05,2]
[356195688,1742065840560,-500.0,8.493e-05,2]
[356195689,1742065840569,-500.0,8.493e-05,2]
[356195690,1742065840578,-500.0,8.493e-05,2]
[356195691,1742065840588,-1357.95,8.493e-05,2]
[356195692,1742065840598,-500.0,8.493e-05,2]
[356195693,1742065840607,-500.0,8.493e-05,2]
[356195694,1742065840617,-580.2,8.493e-05,2]